bitfinex/quotes_ETHUSD_20260305
["timestamp","ask_amount","ask_price","bid_price","bid_amount"]
[1772668802381,0.79541323,2129.4,2127.1,1.09257434]
[1772668802556,0.79541323,2129.2,2127.2,0.69846809]
[1772668802880,0.79541323,2128.6,2127.0,0.0011]
[1772668803454,0.79541323,2128.6,2127.0,0.69525265]
[1772668804384,0.79541323,2127.6,2126.9,0.0011]
[1772668804583,0.79541323,2127.6,2126.2,0.69096538]
[1772668804800,0.79541323,2127.6,2126.1,2.46932227]
[1772668804801,0.79541323,2127.6,2126.4,0.69206538]
[1772668805290,0.79541323,2127.6,2126.5,1.86491249]
[1772668805864,0.79541323,2127.4,2126.4,0.0011]
[1772668806067,0.79541323,2127.4,2126.4,1.17679364]
[1772668806594,0.79541323,2127.4,2126.4,1.17678483]
[1772668807011,0.79541323,2127.4,2126.4,0.0011]
[1772668807756,0.79541323,2127.4,2125.9,1.17592138]
[1772668807864,0.79541323,2127.4,2125.8,0.0011]
[1772668807865,0.79541323,2127.2,2125.8,0.0011]
[1772668808194,0.79541323,2127.1,2125.8,0.0011]
[1772668810295,0.79541323,2126.9,2125.8,0.0011]
[1772668811296,1.17536436,2127.0,2125.9,0.66316159]
[1772668811795,1.17514336,2127.4,2126.4,0.66316159]
[1772668812196,0.79541323,2127.3,2126.5,1.17564072]
[1772668812404,0.79541323,2127.3,2126.1,1.17694767]
[1772668812577,0.58220324,2127.3,2126.2,0.65913888]
[1772668814367,1.97066708,2127.2,2126.3,1.97696425]
[1772668815498,0.79541323,2127.1,2126.3,1.97696425]
[1772668815698,0.79541323,2127.1,2126.1,3.64623229]
[1772668816208,0.79541323,2127.1,2126.1,0.0011]
[1772668816581,0.79541323,2126.9,2125.9,0.0011]
[1772668818109,0.79541323,2126.7,2125.9,0.0011]
[1772668818677,0.7755311,2126.5,2125.9,0.0011]
[1772668820416,0.7755311,2126.5,2125.6,0.0011]
[1772668821018,0.7755311,2126.3,2125.6,0.0011]
[1772668821617,0.7755311,2126.2,2125.6,0.0011]
[1772668823231,0.7755311,2126.0,2125.6,0.0011]
[1772668824329,0.7755311,2126.0,2125.8,0.0011]
[1772668825629,1.95145947,2126.0,2125.8,0.0011]
[1772668826504,0.7765311,2126.3,2125.8,0.0011]
[1772668826726,1.95096668,2126.9,2125.9,0.78618828]
[1772668826901,0.7755311,2126.8,2125.9,0.78618828]
[1772668827441,4.70125525,2127.1,2126.1,0.71067145]
[1772668827442,1.92717756,2127.1,2126.1,0.71067145]
[1772668827641,1.92717756,2127.1,2126.2,0.71067145]
[1772668828003,0.75186299,2127.0,2126.2,0.71067145]
[1772668829437,0.75186299,2126.8,2126.0,1.17591721]
[1772668829625,0.75186299,2126.8,2125.9,1.88660097]
[1772668830359,0.75186299,2126.8,2125.8,0.0011]
[1772668830641,0.75186299,2126.6,2125.8,1.17712247]
[1772668831016,0.75186299,2126.6,2125.8,0.0011]
[1772668831515,0.75186299,2126.4,2125.8,0.0011]
[1772668832670,0.75186299,2126.7,2125.8,0.71177145]
[1772668833360,1.575,2126.8,2125.8,0.71177145]
[1772668833562,1.17553016,2126.7,2125.9,1.17597252]
[1772668833849,1.17553016,2126.7,2126.0,0.71067145]
[1772668834012,1.575,2126.8,2126.0,0.71067145]
[1772668834217,2.7505163,2126.8,2126.0,0.71067145]
[1772668834943,2.7505163,2126.8,2125.9,1.17597252]
[1772668834944,3.50237929,2126.8,2125.9,1.17597252]
[1772668835824,3.50237929,2126.8,2125.8,5.41566156]
[1772668836243,3.50237929,2126.8,2125.9,0.71067145]
[1772668836744,0.75186299,2126.7,2125.8,4.70499011]
[1772668836950,0.75186299,2126.7,2126.2,0.0011]
[1772668837118,0.75186299,2126.5,2126.2,0.0011]
[1772668837318,0.75186299,2126.5,2126.0,0.0011]
[1772668837949,1.927559,2126.4,2126.0,0.0011]
[1772668840739,1.17569601,2126.4,2126.0,0.0011]
[1772668841640,1.17661993,2126.6,2126.0,0.71177145]
[1772668841962,0.001,2126.6,2126.0,0.71177145]
[1772668842143,1.17661298,2126.6,2126.0,0.71177145]
[1772668843068,0.001,2126.6,2126.0,1.88767476]
[1772668843271,0.001,2126.6,2126.0,1.88768466]
[1772668845675,0.001,2126.6,2126.1,0.71067145]
[1772668846378,0.001,2126.6,2126.1,3.25425541]
[1772668846564,1.17540459,2127.0,2126.2,0.71067145]
[1772668846764,0.75186299,2126.9,2126.2,0.71067145]
[1772668847266,1.17547489,2126.8,2126.3,1.1757513]
[1772668848176,1.92732126,2126.9,2126.3,1.1757513]
[1772668848379,0.75186299,2127.5,2126.4,0.71067145]
[1772668848579,0.75186299,2127.5,2126.3,1.1757513]
[1772668848755,0.75186299,2127.5,2126.2,1.89170053]
[1772668849381,0.001,2126.6,2126.2,1.89280053]
[1772668851178,0.001,2126.6,2126.2,1.17690481]
[1772668851883,0.7283477,2126.6,2126.2,0.0011]
[1772668853872,1.17564072,2126.5,2126.2,0.0011]
[1772668855198,1.17662824,2126.6,2126.2,0.0011]
[1772668855576,1.90397594,2126.6,2126.2,0.0011]
[1772668856700,0.7273477,2126.5,2126.2,0.0011]
[1772668859208,1.17569601,2126.4,2126.2,0.0011]
[1772668860004,1.90304371,2126.4,2126.2,0.0011]
[1772668860197,0.7273477,2126.3,2126.0,0.0011]
[1772668860815,0.7273477,2126.3,2125.8,0.0011]
[1772668861119,0.7273477,2126.1,2125.8,0.0011]
[1772668861405,2.3443477,2126.1,2125.5,0.0011]
[1772668861575,0.7273477,2126.1,2125.5,0.0011]
[1772668861780,3.52013896,2126.3,2125.9,0.0011]
[1772668862311,0.7273477,2126.2,2125.9,0.0011]
[1772668862490,0.7273477,2126.2,2125.5,0.0011]
[1772668863506,0.7273477,2126.0,2125.5,0.0011]
[1772668864122,0.7273477,2126.0,2125.3,0.0011]
[1772668865711,0.7273477,2125.8,2125.3,0.0011]
[1772668867209,1.17597252,2125.9,2125.3,0.67607854]
[1772668867922,1.17591587,2126.1,2125.5,0.67153075]
[1772668868121,1.17568014,2126.5,2125.5,0.67153075]
[1772668868296,0.3324419,2127.2,2125.5,0.67153075]
[1772668868297,0.7273477,2126.9,2125.5,0.67153075]
[1772668868501,2.2350987,2127.2,2125.5,0.67053075]
[1772668868705,5.42868758,2127.1,2125.7,0.67053075]
[1772668870001,0.7273477,2127.0,2125.9,0.66373521]
[1772668872838,1.17541962,2126.9,2126.1,0.65368047]
[1772668873042,1.90276732,2126.9,2126.1,0.65368047]
[1772668873340,0.7283477,2126.8,2125.8,0.65368047]
[1772668873518,0.7283477,2126.8,2125.8,1.82967319]
[1772668874530,0.7283477,2126.8,2125.6,1.82647212]
[1772668875038,1.17553016,2126.7,2125.6,1.82647212]
[1772668875337,0.7273477,2126.6,2125.6,1.82647212]
[1772668878850,0.67970066,2126.4,2125.6,1.82647212]
[1772668881130,1.1757513,2126.3,2125.6,1.82647212]
[1772668881539,1.1757513,2126.3,2125.7,0.6251358]
[1772668883455,1.1757513,2126.3,2125.7,1.80119068]
[1772668883657,1.85545196,2126.3,2125.7,0.6251358]
[1772668884348,0.67970066,2126.2,2125.5,1.79315347]
[1772668884751,0.67970066,2126.2,2125.5,0.0011]
[1772668884928,0.67970066,2126.2,2125.6,0.61286797]
[1772668885128,0.67970066,2126.2,2125.8,0.0011]
[1772668885849,0.67970066,2126.0,2125.8,0.0011]
[1772668887929,1.17597252,2125.9,2125.8,0.0011]
[1772668889444,1.85565003,2126.0,2125.8,0.0011]
[1772668889844,1.17594937,2126.0,2125.8,0.0011]
[1772668890062,0.61117402,2126.2,2125.8,0.0011]
[1772668890253,1.17584302,2126.2,2125.8,0.0011]
[1772668891061,1.17580595,2126.3,2125.8,0.0011]
[1772668891749,1.78697997,2126.3,2125.8,0.0011]
[1772668893171,1.78697997,2126.3,2125.8,1.17712784]
[1772668893358,1.78692971,2126.3,2125.8,1.76514933]
[1772668893767,0.61117402,2126.3,2125.8,1.76514933]
[1772668893942,1.78692803,2126.3,2125.8,1.76514933]
[1772668895760,1.78692803,2126.3,2125.8,0.58912149]
[1772668896064,0.61117402,2126.2,2125.8,0.0011]
[1772668896563,0.61117402,2126.2,2125.8,1.17712214]
[1772668896939,6.31578525,2126.4,2125.8,1.17712214]
[1772668896940,0.001,2126.4,2126.1,0.57673604]
[1772668897553,0.001,2126.4,2126.2,1.1758066]
[1772668897954,2.7865714,2126.7,2126.2,1.1758066]
[1772668898766,2.7865714,2126.7,2126.2,1.74977217]
[1772668899591,1.611,2126.7,2126.2,1.74977217]
[1772668899754,2.78654367,2126.7,2126.2,1.74977217]
[1772668900090,0.001,2126.7,2126.3,0.56850418]
[1772668900789,0.001,2126.7,2126.2,1.1758066]
[1772668901351,0.001,2126.7,2126.3,0.56578266]
[1772668901779,0.001,2126.7,2126.4,1.17569601]
[1772668902983,0.001,2126.7,2126.3,1.74149186]
[1772668904579,0.001,2126.7,2126.4,0.55680278]
[1772668904763,0.001,2126.8,2126.4,0.55680278]
[1772668904965,0.002,2126.8,2126.4,0.55680278]
[1772668906983,0.61317402,2126.8,2126.2,0.54864084]
[1772668907199,0.002,2126.8,2126.2,0.54864084]
[1772668907602,2.11887665,2127.2,2126.3,0.54664084]
[1772668907884,0.94361592,2127.2,2126.3,0.54664084]
[1772668908092,0.61117402,2127.9,2126.4,0.54401215]
[1772668909205,0.001,2126.6,2126.5,1.72559822]
[1772668909488,0.58103885,2127.7,2126.6,0.5499575]
[1772668911191,0.58103885,2127.6,2126.8,0.54468545]
[1772668913320,0.58103885,2127.7,2127.0,0.54011141]
[1772668913809,0.58103885,2128.0,2127.0,0.54011141]
[1772668913989,0.58203885,2128.4,2127.1,0.53817346]
[1772668914696,0.58203885,2128.4,2127.3,0.53817346]
[1772668915008,0.001,2128.4,2127.5,0.53817346]
[1772668915382,0.001,2128.4,2127.7,0.53493614]
[1772668916729,1.75533518,2129.0,2127.8,0.53202998]
[1772668917010,0.58103885,2128.9,2127.8,0.53202998]
[1772668917198,0.58103885,2128.9,2127.8,1.95402998]
[1772668917387,0.58103885,2128.9,2128.0,0.52946029]
[1772668917388,0.58103885,2128.7,2128.0,0.52946029]
[1772668917594,4.69616322,2129.4,2128.0,0.52946029]
[1772668917595,0.58103885,2129.0,2128.0,0.52946029]
[1772668917805,1.75523888,2129.2,2128.2,0.52946029]
[1772668918107,1.75518978,2129.2,2128.2,0.52946029]
[1772668919413,1.75518978,2129.2,2128.4,0.52440398]
[1772668920389,0.58103885,2129.1,2128.4,0.52440398]
[1772668920994,0.001,2128.8,2128.4,0.52440398]
[1772668921196,1.75512131,2129.4,2128.4,0.52440398]
[1772668921399,1.17502328,2129.5,2128.6,0.51937288]
[1772668921607,1.75606213,2129.5,2128.6,0.51937288]
[1772668921808,0.58103885,2129.4,2128.6,0.51937288]
[1772668922299,0.58103885,2129.4,2128.2,1.17467372]
[1772668922508,0.58103885,2129.4,2128.2,1.69226835]
[1772668922826,0.58103885,2129.4,2128.3,0.51759463]
[1772668923497,1.75513362,2129.3,2128.5,0.51511398]
[1772668923697,0.58103885,2129.2,2128.4,1.17459124]
[1772668924193,0.58103885,2129.2,2128.4,1.6872459]
[1772668924393,0.58103885,2129.2,2128.4,0.51265466]
[1772668924619,0.58103885,2129.2,2127.1,4.88540115]
[1772668924837,0.58103885,2129.2,2127.3,0.51265466]
[1772668925498,0.58103885,2129.0,2127.5,0.50956738]
[1772668930639,0.58103885,2128.8,2127.6,1.1750329]
[1772668930937,0.58103885,2128.8,2127.3,1.67274584]
[1772668931638,0.55213885,2128.8,2127.4,0.49522101]
[1772668932418,0.55213885,2128.8,2127.2,0.52265085]
[1772668932834,0.58103885,2128.6,2127.2,1.69789227]
[1772668933034,0.58103885,2128.6,2127.6,0.0011]
[1772668933642,0.58103885,2128.4,2127.6,0.0011]
[1772668934823,1.75568528,2128.3,2127.6,0.0011]
[1772668935027,0.58103885,2128.2,2127.6,0.0011]
[1772668937445,1.17475682,2128.1,2127.6,0.0011]
[1772668937947,1.75579567,2128.1,2127.6,0.0011]
[1772668939268,0.60610864,2128.0,2127.5,0.48132156]
[1772668939454,1.78097588,2127.9,2127.4,0.59993785]
[1772668939625,1.17486724,2127.9,2127.4,0.59993785]
[1772668940635,1.78097588,2127.9,2127.4,0.59993785]
[1772668940840,4.69946896,2128.0,2127.4,0.59993785]
[1772668940841,1.17484482,2128.0,2127.4,0.59993785]
[1772668941954,1.17484482,2128.0,2127.5,1.17508813]
[1772668942244,1.17484482,2128.0,2127.5,1.77392598]
[1772668942446,0.60610864,2127.9,2127.4,0.0011]
[1772668943038,0.60610864,2127.9,2127.4,1.17624263]
[1772668943668,0.60610864,2127.9,2127.4,0.0011]
[1772668944068,1.17492245,2127.8,2127.4,0.0011]
[1772668945867,1.17464895,2128.3,2127.4,0.59993785]
[1772668946168,4.69837154,2128.4,2127.6,0.61212427]
[1772668946463,5.30121655,2128.4,2127.6,0.61212427]
[1772668948173,1.17448087,2128.6,2127.8,0.61212427]
[1772668948368,1.77732588,2128.6,2127.8,0.61212427]
[1772668948671,0.60284501,2128.5,2127.8,0.61212427]
[1772668950379,1.77743625,2128.4,2127.8,1.78700406]
[1772668951272,0.60284501,2128.9,2127.9,0.61212427]
[1772668951473,1.77814423,2129.0,2127.9,0.61212427]
[1772668952378,0.60284501,2128.9,2128.1,0.61212427]
[1772668952776,0.001,2129.0,2128.1,0.61212427]
[1772668952963,0.001,2129.0,2128.3,0.61212427]
[1772668953579,1.1750082,2129.5,2128.3,0.61212427]
[1772668953962,0.001,2129.5,2128.3,0.61212427]
[1772668954579,0.001,2129.5,2128.5,0.61212427]
[1772668954781,0.001,2129.5,2128.7,0.61212427]
[1772668956153,1.50390106,2130.2,2129.1,0.61212427]
[1772668956381,0.3302797,2130.2,2129.1,0.61212427]
[1772668956575,1.50388459,2130.2,2129.3,0.61212427]
[1772668956990,0.60284501,2130.1,2129.3,0.61212427]
[1772668957283,0.54284501,2130.1,2129.3,0.61212427]
[1772668958480,0.3302797,2130.2,2129.3,0.61212427]
[1772668958707,1.17362188,2130.2,2129.5,0.61212427]
[1772668959096,1.77646689,2130.2,2129.5,0.61212427]
[1772668960109,0.60284501,2130.4,2129.5,0.61212427]
[1772668960782,0.60284501,2130.2,2129.3,0.61212427]
[1772668961519,0.60284501,2130.2,2129.1,0.61212427]
[1772668962005,1.77626133,2130.6,2129.3,0.61212427]
[1772668962226,1.77626133,2130.6,2129.0,4.69615854]
[1772668962227,1.77626133,2130.6,2129.5,0.61212427]
[1772668962381,1.17333255,2130.7,2129.7,0.61212427]
[1772668962787,1.17333255,2130.7,2129.9,0.61212427]
[1772668963310,0.60284501,2130.6,2129.7,1.17384103]
[1772668963682,0.60284501,2130.6,2129.6,0.61212427]
[1772668963883,0.60284501,2130.6,2129.6,1.78604088]
[1772668964084,0.60284501,2130.5,2129.3,1.78621073]
[1772668964709,0.60284501,2130.3,2129.0,1.78633676]
[1772668966086,0.60284501,2130.3,2129.1,0.61212427]
[1772668966915,0.60284501,2130.1,2129.2,1.78627418]
[1772668967618,0.60284501,2130.1,2129.3,0.61212427]
[1772668967987,1.77641608,2130.3,2129.3,0.61212427]
[1772668969211,1.77641608,2130.3,2129.5,0.56037897]
[1772668970015,0.001,2130.1,2129.5,0.56037897]
[1772668971192,0.001,2130.1,2129.6,1.17392937]
[1772668971614,0.60155557,2130.1,2129.3,1.17405289]
[1772668971814,0.60155557,2130.1,2129.2,1.7344949]
[1772668971991,0.60155557,2130.1,2129.2,0.56037897]
[1772668972315,0.60155557,2130.1,2129.1,1.17417073]
[1772668973118,0.60155557,2130.1,2129.1,1.7345497]
[1772668973436,1.77426449,2130.0,2129.1,1.7345497]
[1772668973643,1.17469807,2130.1,2129.2,0.56037897]
[1772668975208,0.001,2130.1,2129.4,0.56037897]
[1772668976748,0.001,2130.1,2129.0,0.56037897]
[1772668976749,0.60155557,2130.1,2129.0,0.56037897]
[1772668977448,1.17370892,2130.0,2129.2,0.56037897]
[1772668978729,0.60055557,2129.9,2129.2,0.56037897]
[1772668979124,0.60055557,2129.9,2128.8,4.69731619]
[1772668979325,1.17381913,2129.8,2128.8,5.25769516]
[1772668979533,0.60055557,2129.7,2128.9,0.56037897]
[1772668979724,1.17381913,2129.8,2128.9,0.56037897]
[1772668980444,0.60055557,2129.7,2128.9,0.56037897]
[1772668981455,1.77448494,2129.6,2128.9,0.56037897]
[1772668981656,1.77448494,2129.6,2128.7,1.413]
[1772668981657,0.60055557,2129.5,2128.8,1.17432705]
[1772668981830,0.60055557,2129.5,2128.7,3.1477728]
[1772668982036,0.60055557,2129.5,2129.1,0.0011]
[1772668983738,1.7745952,2129.4,2129.1,0.0011]
[1772668984448,0.60055557,2129.3,2129.1,0.0011]
[1772668985849,1.17414991,2129.2,2129.1,0.0011]
[1772668987869,4.69645298,2129.3,2129.1,0.0011]
[1772668989043,1.17409477,2129.3,2129.1,0.0011]
[1772668991044,1.77465034,2129.3,2128.9,0.0011]
[1772668991969,0.60055557,2129.2,2128.6,0.0011]
[1772668992561,0.60055557,2129.0,2128.6,0.0011]
[1772668992789,0.60055557,2128.8,2128.6,0.0011]
[1772668995371,1.1744257,2128.7,2128.6,0.0011]
[1772668999194,1.68406136,2128.7,2128.5,0.0011]
[1772668999494,1.1744257,2128.7,2128.5,0.0011]
[1772669001390,5.20723923,2128.8,2128.5,0.0011]
[1772669002682,1.17437053,2128.8,2128.5,0.0011]
[1772669003401,0.50963566,2128.8,2128.5,0.0011]
[1772669004798,4.69735927,2128.9,2128.5,0.0011]
[1772669005300,5.20699493,2128.9,2128.5,0.0011]
[1772669006102,0.53072837,2128.8,2128.5,0.0011]
[1772669006304,0.53072837,2128.8,2128.3,0.0011]
[1772669006518,0.001,2128.6,2128.3,0.0011]
[1772669008098,0.53172837,2128.6,2128.2,1e-08]
[1772669008806,0.53072837,2128.5,2128.2,1e-08]
[1772669009498,0.53072837,2128.5,2127.6,1.70398352]
[1772669009499,0.53072837,2128.3,2127.6,0.0011]
[1772669009697,0.53072837,2128.1,2127.6,0.00220001]
[1772669009898,2.11872837,2128.2,2127.7,0.52788564]
[1772669010510,0.53072837,2128.1,2127.6,0.00220001]
[1772669011505,0.53072837,2127.9,2127.6,0.00220001]
[1772669014022,1.70562804,2127.9,2127.4,1.7014761]
[1772669014200,1.70562804,2127.9,2127.4,0.52636851]
[1772669014401,1.70562804,2127.9,2127.4,1.70150301]
[1772669015313,1.70562804,2127.9,2127.4,0.52636851]
[1772669016520,1.17489967,2127.9,2127.5,0.52788564]
[1772669016705,0.53072837,2128.3,2127.5,0.52788564]
[1772669016903,1.7053991,2128.3,2127.5,0.52788564]
[1772669017426,0.53072837,2128.2,2127.6,0.53739609]
[1772669018222,0.53072837,2128.2,2127.6,0.53849609]
[1772669018429,0.53072837,2128.2,2127.6,0.0011]
[1772669018430,0.53072837,2128.0,2127.6,0.0011]
[1772669018599,0.53172837,2127.7,2127.2,0.52788564]
[1772669018925,0.53172837,2127.7,2127.4,0.0011]
[1772669019626,0.001,2127.7,2127.4,0.52898564]
[1772669020502,0.001,2127.7,2127.6,0.52788564]
[1772669021129,0.53172837,2128.6,2127.7,0.52788564]
[1772669021319,0.001,2128.6,2127.7,0.52788564]
[1772669021516,1.17548168,2128.6,2127.8,0.52788564]
[1772669022028,0.001,2128.6,2127.8,0.52788564]
[1772669022637,0.001,2128.6,2128.0,0.52788564]
[1772669025140,0.001,2128.6,2128.2,0.52788564]
[1772669025748,0.001,2128.6,2127.8,0.52788564]
[1772669025951,0.53172837,2128.6,2127.8,0.52788564]
[1772669026151,0.53172837,2128.6,2127.8,0.52318564]
[1772669027546,0.53072837,2128.4,2127.8,1.6981061]
[1772669028264,0.001,2128.6,2127.9,0.52788564]
[1772669029239,5.20767972,2129.3,2128.1,2.67522277]
[1772669029530,5.20767972,2129.3,2128.5,0.48964236]
[1772669030439,0.51117559,2129.2,2128.5,0.48964236]
[1772669030649,0.001,2129.1,2128.5,0.48964236]
[1772669031757,0.001,2129.1,2128.7,0.48964236]
[1772669033174,0.51217559,2129.1,2128.5,1.59777469]
[1772669033699,0.51117559,2128.9,2128.2,5.12190124]
[1772669033865,0.51117559,2128.9,2128.2,1.17470162]
[1772669034181,0.51117559,2128.9,2128.1,1.17471319]
[1772669034385,0.51117559,2128.9,2128.1,1.59706151]
[1772669035472,0.51117559,2128.9,2128.0,2.5717664]
[1772669035780,0.51117559,2128.7,2128.1,0.42145176]
[1772669037385,1.68554612,2128.8,2128.1,0.42145176]
[1772669037884,0.51117559,2129.0,2128.3,0.48964236]
[1772669039590,0.51117559,2129.0,2128.1,1.17472317]
[1772669039895,0.001,2129.1,2128.6,0.48964236]
[1772669040455,1.17400382,2129.5,2128.6,0.48964236]
[1772669040662,1.17400382,2129.5,2128.6,1.88564236]
[1772669040878,1.17400382,2129.5,2128.7,0.48964236]
[1772669041762,0.51117559,2129.4,2128.5,1.17453605]
[1772669041972,0.51117559,2129.2,2128.3,1.66426224]
[1772669042389,0.51117559,2129.2,2128.1,1.396]
[1772669042589,0.51117559,2129.1,2128.1,2.57075243]
[1772669042793,1.584,2129.2,2128.1,2.57075243]
[1772669042794,0.51117559,2129.0,2128.7,0.0011]
[1772669043992,0.51117559,2128.8,2128.7,0.0011]
[1772669044286,1.17428987,2129.0,2128.7,0.0011]
[1772669044490,1.68542465,2129.1,2128.7,0.0011]
[1772669044678,0.51117559,2129.0,2128.7,0.0011]
[1772669047898,1.68544064,2129.0,2128.7,0.0011]
[1772669048188,1.68544051,2129.0,2128.7,0.0011]
[1772669048611,0.51117559,2128.9,2128.5,0.0011]
[1772669050313,1.17437053,2128.8,2128.5,0.0011]
[1772669050481,1.68554612,2128.8,2128.5,0.0011]
[1772669051012,0.51117559,2128.7,2128.5,0.0011]
[1772669052700,1.68565646,2128.6,2128.5,0.0011]
[1772669052905,0.51117559,2128.5,2128.2,0.0011]
[1772669054723,0.51117559,2128.3,2128.2,0.0011]
[1772669055253,0.51117559,2128.3,2127.6,0.0011]
[1772669055254,0.51117559,2128.2,2127.6,0.0011]
[1772669055540,0.51117559,2128.1,2127.7,0.0011]
[1772669056106,1.584,2128.2,2127.7,0.0011]
[1772669056612,1.584,2128.2,2127.7,0.49074236]
[1772669057306,1.68571265,2128.5,2127.9,0.48964236]
[1772669057507,3.27064429,2128.7,2128.1,0.48964236]
[1772669057736,1.585,2128.7,2128.1,0.48964236]
[1772669058436,2.75942843,2128.7,2128.1,0.48964236]
[1772669058813,1.585,2128.7,2128.1,0.48964236]
[1772669059132,1.17534691,2128.9,2128.3,0.4984322]
[1772669059430,0.001,2128.9,2128.4,1.67302344]
[1772669060343,0.001,2128.9,2128.5,0.4995322]
[1772669061438,0.001,2128.9,2128.6,1.17448087]
[1772669061936,0.001,2128.9,2128.7,0.4995322]
[1772669062121,1.12519409,2129.2,2128.6,1.17448087]
[1772669062310,1.12519409,2129.2,2128.7,0.0011]
[1772669062916,0.51907879,2129.1,2128.7,0.0011]
[1772669063623,1.693339,2129.0,2128.7,0.0011]
[1772669064039,1.17424466,2129.1,2128.7,0.0011]
[1772669064227,1.69327397,2129.2,2128.7,0.0011]
[1772669068570,1.17513137,2129.3,2128.7,0.51738269]
[1772669068724,0.001,2129.0,2128.7,0.51738269]
[1772669070322,0.001,2129.0,2128.8,1.17437053]
[1772669070523,0.48034091,2129.0,2128.7,0.0011]
[1772669070722,0.48034091,2129.0,2128.4,0.0011]
[1772669071733,0.47934091,2128.8,2128.4,0.0011]
[1772669072325,2.06870376,2129.0,2128.4,0.0011]
[1772669072326,1.65387696,2128.5,2128.4,0.0011]
[1772669073441,0.47934091,2128.5,2128.4,0.0011]
[1772669074357,1.17450877,2128.6,2128.4,0.0011]
[1772669074655,0.47934091,2128.5,2128.4,0.0011]
[1772669075364,1.17446777,2128.7,2128.4,0.0011]
[1772669075574,1.65375699,2128.8,2128.4,0.0011]
[1772669076634,0.47934091,2128.7,2128.4,0.0011]
[1772669081159,1.65376661,2128.7,2128.6,0.0011]
[1772669082777,0.47934091,2128.6,2128.1,0.0011]
[1772669083076,0.47934091,2128.3,2128.1,0.0011]
[1772669084581,0.47934091,2128.1,2127.6,0.0011]
[1772669084757,0.47934091,2127.9,2127.6,0.0011]
[1772669085060,0.47934091,2127.7,2127.6,0.0011]
[1772669085263,1.65431858,2127.7,2127.6,0.0011]
[1772669086245,0.47934091,2127.6,2127.4,0.0011]
[1772669086858,2.76597767,2127.7,2127.1,0.0011]
[1772669086859,0.47934091,2127.4,2127.1,0.0011]
[1772669087051,0.47934091,2127.2,2127.1,0.0011]
[1772669087281,3.24559476,2127.2,2127.1,0.0011]
[1772669089270,3.24559476,2127.2,2127.1,0.0022]
[1772669089271,2.76625385,2127.2,2127.1,0.0022]
[1772669089575,2.76625385,2127.2,2127.1,0.0011]
[1772669089747,0.49760534,2127.1,2126.7,0.0011]
[1772669089948,0.49760534,2127.1,2126.7,0.0022]
[1772669090749,2.76625385,2127.2,2126.7,0.49670016]
[1772669091947,1.5899,2127.2,2126.8,0.49450016]
[1772669092169,2.76515649,2127.2,2126.8,0.49450016]
[1772669092470,2.09160534,2127.6,2126.8,0.49450016]
[1772669092645,1.17508813,2127.5,2127.3,0.0011]
[1772669092965,2.76903453,2127.6,2127.3,0.49560016]
[1772669093165,1.594,2127.6,2127.3,0.49560016]
[1772669093574,2.76903477,2127.6,2127.3,0.49560016]
[1772669094081,0.49760534,2127.5,2127.0,0.0011]
[1772669094294,2.76903477,2127.6,2127.0,0.49560016]
[1772669094447,0.49760534,2127.5,2127.0,0.0011]
[1772669094851,0.49760534,2127.5,2126.8,0.0011]
[1772669095151,0.49760534,2127.2,2126.8,0.0011]
[1772669095388,0.49760534,2127.4,2126.8,0.49560016]
[1772669095590,1.67302496,2126.9,2126.5,0.0011]
[1772669095757,0.49760534,2126.8,2126.5,0.0011]
[1772669096976,0.49760534,2126.8,2126.2,0.0011]
[1772669097485,1.17553016,2126.7,2126.2,0.0011]
[1772669097853,0.49760534,2126.6,2126.2,0.0011]
[1772669098164,2.09460534,2126.5,2126.2,0.0011]
[1772669098365,2.09460534,2126.5,2125.8,0.0011]
[1772669098366,0.49760534,2126.4,2125.8,0.0011]
[1772669099493,1.597,2126.5,2125.8,0.0011]
[1772669099691,1.17569601,2126.4,2126.0,0.49560016]
[1772669099850,2.77268391,2126.5,2126.0,0.49560016]
[1772669100274,4.70162422,2127.0,2126.0,0.49560016]
[1772669100275,1.599,2126.9,2126.0,0.49560016]
[1772669100579,1.599,2127.0,2126.1,2.50819478]
[1772669100749,2.77436497,2127.0,2126.2,0.49450016]
[1772669100947,1.17508813,2127.5,2126.2,0.49450016]
[1772669101674,1.17501835,2127.7,2126.4,0.49450016]
[1772669101975,0.49760534,2127.6,2126.5,0.49450016]
[1772669102553,1.597,2127.5,2126.5,0.49450016]
[1772669102858,2.09460534,2127.5,2126.5,0.49450016]
[1772669103662,1.6727487,2127.4,2126.5,1.67010921]
[1772669103861,0.49760534,2127.3,2126.2,4.7031034]
[1772669104078,2.09460534,2127.3,2126.3,1.17572909]
[1772669104591,1.17514336,2127.4,2126.2,1.67027288]
[1772669104592,0.49760534,2127.2,2126.2,1.67027288]
[1772669104763,0.49760534,2127.1,2126.2,1.67030318]
[1772669104958,0.49760534,2127.1,2126.4,0.0011]
[1772669105179,0.49760534,2126.9,2126.0,0.0011]
[1772669105485,0.49760534,2126.7,2126.1,0.0011]
[1772669105674,1.67319078,2126.6,2126.1,0.0011]
[1772669105869,0.49760534,2126.5,2126.1,0.0011]
[1772669106655,1.597,2126.4,2126.1,0.0011]
[1772669107759,1.1757513,2126.3,2126.1,0.0011]
[1772669108081,1.1757276,2126.4,2126.1,0.0011]
[1772669108298,1.17547489,2126.8,2126.1,0.49560016]
[1772669109059,1.597,2126.7,2126.1,0.49560016]
[1772669109681,0.001,2127.0,2126.5,0.49450016]
[1772669110678,6.30279443,2127.4,2126.5,0.49450016]
[1772669110679,1.17517504,2127.4,2126.5,0.49450016]
[1772669110993,1.597,2127.2,2126.5,0.49450016]
[1772669111788,1.597,2127.2,2126.7,0.49450016]
[1772669112869,4.70045753,2127.5,2126.7,0.49450016]
[1772669112870,1.17518036,2127.4,2126.7,0.49450016]
[1772669113194,1.597,2127.3,2126.7,0.49450016]
[1772669113765,5.19737635,2127.8,2126.9,0.37567544]
[1772669113982,1.17497767,2127.7,2126.9,0.37567544]
[1772669115488,1.08133894,2127.6,2126.9,0.37567544]
[1772669115687,0.49760534,2127.5,2126.6,1.17554218]
[1772669115890,0.49760534,2127.3,2126.4,1.17569601]
[1772669116185,0.49760534,2127.3,2126.5,0.37498409]
[1772669116364,4.70057346,2127.6,2126.5,0.37498409]
[1772669116365,1.08133894,2127.2,2126.5,0.37498409]
[1772669116688,1.17507381,2127.6,2126.5,0.37498409]
[1772669116859,1.08133894,2127.5,2126.5,0.37498409]
[1772669117461,0.001,2127.1,2126.5,0.37498409]
[1772669117691,1.08133894,2127.5,2126.5,0.37430853]
[1772669117898,1.08133894,2127.5,2126.7,0.37430853]
[1772669118678,1.08133894,2127.5,2126.9,0.3736484]
[1772669119291,0.48915457,2127.4,2126.6,1.54890945]
[1772669119593,1.17509347,2127.5,2126.6,0.37332401]